bitfinex/quotes_ETHUSD_20250214
["timestamp","ask_amount","ask_price","bid_price","bid_amount"]
[1739521594788,0.04,2714.2,2714.1,7.80058514]
[1739521594991,0.04,2714.2,2714.1,7.85588653]
[1739521595687,0.04,2714.2,2714.1,7.86338653]
[1739521596053,1e-05,2714.2,2714.1,16.61338653]
[1739521596248,0.1468444,2715.5,2714.9,3.0]
[1739521596249,3.68276,2715.4,2714.9,3.0]
[1739521596454,3.68276,2715.4,2715.0,1.17260896]
[1739521596651,3.68303,2715.2,2715.0,1.17260896]
[1739521596875,3.8294744,2715.5,2715.0,0.05455496]
[1739521597061,0.1468444,2715.5,2715.0,0.05455496]
[1739521597370,0.1468444,2715.5,2715.1,6.68309]
[1739521597664,0.1468444,2715.5,2715.2,1.036629]
[1739521597863,0.1468444,2715.5,2715.4,6.68269]
[1739521598051,0.1468444,2715.5,2715.4,7.49639]
[1739521598247,0.1468444,2715.5,2715.4,7.54994634]
[1739521598451,0.1468444,2715.5,2715.4,3.86725634]
[1739521598867,0.1468444,2715.5,2715.4,7.54994634]
[1739521599063,0.1468444,2715.5,2715.4,8.67322297]
[1739521600981,0.1468444,2715.5,2715.4,8.68072297]
[1739521601171,0.1468444,2715.5,2715.4,8.67322297]
[1739521601367,0.1468444,2715.5,2715.4,4.99053297]
[1739521602189,0.1468444,2715.5,2715.4,8.67322297]
[1739521604426,3.68179,2716.1,2715.5,3.68249]
[1739521604632,3.68179,2716.1,2715.5,3.9355623]
[1739521604927,3.68183,2716.1,2715.6,0.05240414]
[1739521605226,3.68183,2716.1,2715.6,3.73480414]
[1739521605516,3.68189,2716.0,2715.6,0.05240414]
[1739521605696,3.68205,2715.9,2715.6,0.05240414]
[1739521605895,3.68163,2716.2,2715.6,0.90083178]
[1739521606079,3.6814,2716.4,2715.8,3.0]
[1739521606287,3.68134,2716.4,2715.9,0.05215556]
[1739521606604,3.68147,2716.3,2715.9,0.05215556]
[1739521606819,3.68184,2716.1,2715.9,0.05215556]
[1739521606971,3.68188,2716.0,2715.9,0.05215556]
[1739521607171,3.68184,2716.1,2715.7,0.72594705]
[1739521607371,3.68184,2716.1,2715.9,0.05215556]
[1739521607372,4.51431,2716.0,2715.9,0.05215556]
[1739521607593,4.51431,2716.0,2715.8,0.05223841]
[1739521607875,4.51431,2716.0,2715.9,0.05215556]
[1739521608103,0.8324,2716.0,2715.4,3.8137]
[1739521608307,0.8324,2716.0,2715.8,3.0]
[1739521608513,3.6817,2716.2,2715.9,0.04970062]
[1739521608667,4.48191,2716.3,2715.9,0.04970062]
[1739521608873,0.8004,2716.3,2715.9,3.73170062]
[1739521609081,0.8004,2716.3,2715.9,4.77300068]
[1739521609284,0.8004,2716.3,2715.9,1.09109068]
[1739521609486,3.68163,2716.2,2715.9,1.09109068]
[1739521609707,3.68103,2716.7,2715.9,0.04970062]
[1739521609922,3.68103,2716.7,2716.2,3.68161]
[1739521609923,0.7583,2716.7,2716.2,3.68161]
[1739521610190,0.7583,2716.7,2716.4,3.68133]
[1739521610388,3.68061,2717.0,2716.5,3.6812]
[1739521610623,3.6806,2717.0,2716.5,7.10337054]
[1739521610998,0.822,2717.1,2716.6,3.68098]
[1739521611205,0.822,2717.1,2716.5,7.10337054]
[1739521611206,4.50239,2717.1,2716.5,4.87537054]
[1739521611511,0.822,2717.1,2716.7,3.0]
[1739521611716,0.822,2717.1,2716.8,0.04880528]
[1739521611911,3.6802,2717.3,2716.5,1.14505693]
[1739521612102,3.6802,2717.3,2716.9,0.04872248]
[1739521612625,3.68035,2717.2,2716.9,0.04872248]
[1739521612932,3.06256949,2717.9,2716.5,4.82616693]
[1739521612933,3.67945,2717.8,2717.1,3.7925]
[1739521613101,3.67945,2717.8,2717.2,3.72861413]
[1739521613305,0.7754,2718.0,2717.4,3.67988]
[1739521613616,0.7754,2718.0,2717.2,0.04847413]
[1739521613617,0.7754,2718.0,2717.5,6.76479229]
[1739521613815,0.7754,2718.0,2717.5,3.72799584]
[1739521614132,4.45469,2718.0,2717.5,0.04822584]
[1739521614309,0.7754,2718.0,2717.5,0.04822584]
[1739521614636,3.67928,2718.0,2717.4,3.67987]
[1739521614845,3.67946,2717.8,2717.6,0.0477872]
[1739521615045,3.67966,2717.7,2717.5,0.04786995]
[1739521615227,5.403986,2717.8,2717.7,0.04770445]
[1739521615539,3.67998,2717.4,2717.3,3.5779104]
[1739521615741,5.02908,2717.4,2717.3,3.62578673]
[1739521616103,5.907473,2717.4,2717.3,3.62578673]
[1739521616303,5.914973,2717.4,2717.3,3.5779104]
[1739521616518,5.914973,2717.4,2717.3,4e-07]
[1739521617324,4.46222,2716.4,2715.9,0.276]
[1739521617635,0.7808,2716.4,2716.0,0.04898559]
[1739521617838,0.55,2716.9,2716.0,0.04898559]
[1739521617839,3.68097,2716.7,2716.1,3.68165]
[1739521618042,0.7988,2716.7,2716.1,6.68166]
[1739521618211,4.47981,2716.7,2716.2,0.04881991]
[1739521618548,1.301781,2716.7,2716.2,0.04881991]
[1739521618717,3.68147,2716.3,2715.7,1.5075895]
[1739521618924,3.68147,2716.3,2715.7,4.5075895]
[1739521619248,7.36306,2716.3,2715.7,4.5075895]
[1739521619606,3.68162,2716.2,2715.7,4.5075895]
[1739521619806,3.68169,2716.2,2715.7,3.7705]
[1739521620007,3.68147,2716.3,2715.8,0.04924012]
[1739521620253,0.807,2716.2,2715.8,0.04924012]
[1739521620408,0.807,2716.2,2715.3,0.776]
[1739521620610,3.68223,2715.8,2715.1,5.26382908]
[1739521620835,3.68196,2716.0,2715.2,3.0]
[1739521621035,3.68196,2716.0,2715.3,3.68275]
[1739521621238,0.807,2716.2,2715.7,3.68228]
[1739521621545,3.68191,2716.0,2715.6,3.7973]
[1739521621748,4.48861,2716.2,2715.6,3.7973]
[1739521622048,3.68197,2716.0,2715.5,3.0]
[1739521622203,3.6824,2715.7,2715.4,0.33935476]
[1739521622849,0.8217,2715.6,2715.4,0.33935476]
[1739521623055,4.50413,2715.6,2715.2,0.33935476]
[1739521623211,0.8217,2715.6,2715.2,0.33935476]
[1739521623606,0.8217,2715.6,2715.2,0.83137314]
[1739521623807,0.7803,2716.0,2715.2,0.86819973]
[1739521624047,3.6816,2716.3,2715.7,3.68222]
[1739521624261,3.68187,2716.1,2715.5,0.7895]
[1739521624463,0.8135,2716.0,2715.5,4.47193]
[1739521624666,4.49539,2716.0,2715.5,4.47193]
[1739521624951,7.36419,2715.9,2715.4,3.0]
[1739521625154,3.68205,2715.9,2715.4,3.0]
[1739521625363,3.68224,2715.8,2715.4,3.71747784]
[1739521625538,3.68231,2715.7,2715.2,0.49201838]
[1739521625748,3.68231,2715.7,2715.2,7.17491838]
[1739521626628,3.68231,2715.7,2715.2,3.49201838]
[1739521627056,7.3647,2715.7,2715.3,0.34032377]
[1739521627256,3.68269,2715.4,2715.3,0.34032377]
[1739521628845,3.68269,2715.4,2714.7,4.02389377]
[1739521629170,4.43467,2715.5,2714.9,3.68329]
[1739521629374,4.4188,2715.7,2714.9,3.68329]
[1739521629375,0.7916,2716.2,2715.9,3.68201]
[1739521629574,0.7916,2716.2,2716.0,0.04907441]
[1739521629872,1.238908,2716.2,2716.0,3.68188]
[1739521630070,0.7916,2716.5,2716.1,3.73073157]
[1739521630271,0.7916,2716.5,2716.1,0.04899157]
[1739521630572,0.7916,2716.5,2716.1,3.68167]
[1739521630772,0.7916,2716.5,2716.2,0.04890873]
[1739521630950,4.4728,2716.5,2716.1,3.68166]
[1739521631148,0.7916,2716.5,2716.2,0.04890873]
[1739521631350,0.7916,2716.5,2716.0,3.68187]
[1739521631664,0.7916,2716.5,2716.1,3.73072157]
[1739521631855,0.7916,2716.5,2716.1,0.04899157]
[1739521632057,3.68047,2717.1,2716.5,3.68111]
[1739521632260,0.811233,2717.1,2716.2,4.50357]
[1739521632497,4.4319,2717.3,2716.7,3.68083]
[1739521632643,4.43185,2717.3,2716.7,3.68083]
[1739521632835,0.7517,2717.3,2716.8,3.72913183]
[1739521633037,0.7517,2717.3,2716.9,3.68065]
[1739521633290,3.67992,2717.5,2716.9,3.68065]
[1739521633580,3.6791,2718.1,2717.5,3.67975]
[1739521633736,3.8257844,2718.2,2717.6,0.04778242]
[1739521634130,3.67947,2717.8,2717.6,0.04778242]
[1739521634333,0.7722,2717.7,2717.0,0.822]
[1739521634593,3.6798,2717.6,2717.1,0.04819625]
[1739521635737,3.67993,2717.5,2717.1,0.04819625]
[1739521635932,3.68013,2717.3,2716.7,4.47636]
[1739521636166,3.68038,2717.2,2716.8,0.04844461]
[1739521636361,3.68043,2717.1,2716.6,3.0]
[1739521636564,4.44243,2717.1,2716.7,0.04824181]
[1739521636781,0.762,2717.1,2716.5,3.68119]
[1739521636947,0.762,2717.1,2716.7,3.6809]
[1739521637276,0.8274,2717.4,2716.8,0.04815901]
[1739521637434,0.450731,2717.3,2716.8,3.72884901]
[1739521637634,0.450731,2717.3,2716.6,3.68104]
[1739521637861,3.68025,2717.2,2716.9,0.04807621]
[1739521638059,3.68025,2717.2,2716.7,3.68088]
[1739521638262,3.68014,2717.3,2717.0,0.04799342]
[1739521638580,3.68014,2717.3,2717.1,0.04791064]
[1739521638767,3.68027,2717.2,2716.6,3.68099]
[1739521638940,3.68014,2717.3,2716.7,0.04824181]
[1739521639152,4.130894,2717.3,2716.7,3.72917181]
[1739521640084,0.450754,2717.3,2716.7,0.04824181]
[1739521640251,0.450754,2717.3,2716.7,3.72906181]
[1739521640455,0.8274,2717.4,2716.9,3.68059]
[1739521640777,0.8274,2717.4,2717.0,3.72848342]
[1739521640981,0.8274,2717.4,2717.0,0.04799342]
[1739521641295,3.67976,2717.6,2717.0,3.68045]
[1739521641447,0.55,2717.6,2716.7,0.7997]
[1739521641652,0.55,2717.6,2717.3,3.68008]
[1739521641854,0.7975,2717.7,2717.2,3.68012]
[1739521642080,0.7975,2717.7,2717.4,0.04766232]
[1739521642353,3.67944,2717.9,2717.5,0.04757957]
[1739521642547,4.126904,2717.9,2717.2,4.43142]
[1739521642751,3.67966,2717.7,2717.3,0.04774509]
[1739521642993,3.67998,2717.4,2717.3,0.04774509]
[1739521643182,3.67986,2717.5,2716.7,3.68089]
[1739521643493,7.35992,2717.5,2716.8,3.04815901]
[1739521643684,3.68006,2717.4,2716.9,3.68065]
[1739521644196,3.68006,2717.4,2717.0,0.04799342]
[1739521644355,7.36064,2717.2,2717.0,0.04799342]
[1739521644552,3.68029,2717.2,2716.7,6.68084]
[1739521644882,3.68029,2717.2,2716.8,0.04815901]
[1739521645284,3.68029,2717.2,2716.7,3.6809]
[1739521645460,0.7618,2717.3,2716.9,0.04807621]
[1739521645655,1.2427886,2717.3,2716.8,7.40968901]
[1739521645856,0.8167,2717.6,2717.1,3.6803]
[1739521646061,3.67947,2717.8,2717.1,3.68031]
[1739521646277,3.67947,2717.8,2717.3,3.6801]
[1739521646598,3.6796,2717.7,2717.4,0.04749375]
[1739521647106,0.55,2717.8,2717.4,0.04749375]
[1739521647309,0.55,2717.8,2717.6,3.67962]
[1739521647458,0.55,2717.8,2717.4,0.04749375]
[1739521647660,0.55,2717.8,2717.7,0.04724549]
[1739521647920,0.55,2717.8,2717.5,3.67977]
[1739521648220,0.55,2717.8,2717.6,0.04737973]
[1739521648980,0.55,2717.8,2717.4,3.67995]
[1739521649493,0.55,2717.8,2717.7,3.67958]
[1739521649691,0.55,2717.8,2717.7,4.48558]
[1739521650002,0.55,2717.8,2717.7,4.53287699]
[1739521651591,0.55,2717.8,2717.7,7.56966793]
[1739521651919,0.55,2717.8,2717.7,7.53287699]
[1739521652115,0.55,2717.8,2717.7,8.65413469]
[1739521653019,0.55,2717.8,2717.7,0.04729699]
[1739521653716,0.55,2717.8,2717.7,0.04471188]
[1739521654044,0.55,2717.8,2717.1,0.7733]
[1739521654274,3.67965,2717.7,2717.1,0.7733]
[1739521654378,3.67992,2717.5,2717.2,0.04512567]
[1739521654589,3.67972,2717.6,2717.2,0.04512567]
[1739521655016,0.55,2717.8,2717.2,0.04512567]
[1739521655219,3.67958,2717.7,2717.2,3.68024]
[1739521655455,0.55,2717.8,2717.4,3.67991]
[1739521655720,0.55,2717.8,2717.4,3.6799]
[1739521655925,0.55,2717.8,2717.5,0.04512505]
[1739521656287,0.55,2717.8,2717.5,3.72488505]
[1739521656693,0.55,2717.8,2717.6,3.67962]
[1739521656916,0.55,2717.8,2717.7,3.67958]
[1739521657093,0.55,2717.8,2717.7,3.72460031]
[1739521657695,0.55,2717.8,2717.7,0.04502031]
[1739521658430,0.3,2717.8,2717.7,3.67958]
[1739521658787,0.3,2717.8,2717.7,3.72444608]
[1739521659025,0.3,2717.8,2717.7,0.04486608]
[1739521659413,0.3,2717.8,2717.4,6.67996]
[1739521659590,0.3,2717.8,2717.5,3.72476354]
[1739521659788,0.3,2717.8,2717.6,3.6797]
[1739521659989,0.3,2717.8,2717.7,0.04483804]
[1739521660627,0.3,2717.8,2717.5,7.35953]
[1739521660826,0.3,2717.8,2717.4,1.18411481]
[1739521660827,0.3,2717.8,2717.7,0.04483804]
[1739521661025,0.3,2717.8,2717.7,3.67958]
[1739521661237,0.3,2717.8,2717.7,4.46486616]
[1739521661599,0.3,2717.8,2717.7,0.78528616]
[1739521661801,0.3,2717.8,2717.7,0.04486608]
[1739521661993,0.3,2717.8,2717.4,1.18411481]
[1739521662196,0.3,2717.8,2717.7,3.67958]
[1739521662388,0.3,2717.8,2717.7,3.72444608]
[1739521664857,0.3,2717.8,2717.7,0.38555604]
[1739521665167,0.3,2717.8,2717.7,4.47166764]
[1739521665585,0.3,2717.8,2717.7,4.13097768]
[1739521667219,0.3,2717.8,2717.7,4.47166764]
[1739521667419,0.3,2717.8,2717.7,4.06513604]
[1739521667844,0.3,2717.8,2717.7,0.38555604]
[1739521668144,0.3,2717.8,2717.7,4.06513604]
[1739521672273,0.3,2717.8,2717.7,0.38555604]
[1739521673145,0.3,2717.8,2717.7,4.06513604]
[1739521673343,0.3,2717.8,2717.7,0.38555604]
[1739521674397,0.3,2717.8,2717.7,0.04486608]
[1739521674549,3.97944,2717.8,2717.7,0.04486608]
[1739521675203,0.3,2717.8,2717.7,0.04486608]
[1739521675402,3.97944,2717.8,2717.7,0.04486608]
[1739521675874,1.3743,2717.7,2717.5,0.34068996]
[1739521676027,7.49598476,2717.6,2717.5,0.34068996]
[1739521676378,7.51098476,2717.6,2717.5,9.96e-06]
[1739521676972,3.68061,2717.0,2716.5,3.0]
[1739521677176,3.68041,2717.1,2716.5,3.0]
[1739521677335,4.23035,2717.2,2716.6,3.68104]
[1739521677534,0.55,2717.2,2716.6,3.68104]
[1739521677938,4.23034,2717.2,2716.6,3.681]
[1739521678347,3.68041,2717.1,2716.6,3.681]
[1739521678543,3.68041,2717.1,2716.6,7.362]
[1739521678875,3.68068,2716.9,2716.4,8.48002653]
[1739521679075,3.68068,2716.9,2716.4,4.79876653]
[1739521679251,3.68039,2717.1,2716.4,8.48009653]
[1739521679445,4.2709413,2717.1,2716.4,4.79876653]
[1739521679650,4.2709413,2717.1,2716.6,3.68103]
[1739521680236,0.8039,2717.3,2716.8,3.6807]
[1739521680430,3.68035,2717.2,2716.4,4.79876653]
[1739521680633,0.5575,2717.2,2716.7,3.68082]
[1739521680843,4.48409,2717.3,2716.7,3.68084]
[1739521681047,0.8039,2717.3,2717.0,3.68051]
[1739521681373,0.8089,2717.7,2717.0,3.0]
[1739521681675,0.3,2717.8,2717.5,3.67972]
[1739521681877,0.3,2717.8,2717.3,8.14918]
[1739521682170,4.48848,2717.7,2717.2,3.68018]
[1739521682371,0.8089,2717.7,2717.1,3.0]
[1739521682674,3.68005,2717.4,2716.9,3.68065]
[1739521682879,3.68005,2717.4,2716.9,3.68059]
[1739521683040,3.67973,2717.6,2717.0,3.68051]
[1739521683240,4.6112179,2717.6,2717.0,3.68051]
[1739521683442,4.50253,2717.3,2716.8,3.68072]
[1739521683748,0.8224,2717.3,2716.9,0.04289733]
[1739521683951,3.68051,2717.1,2716.9,0.04289733]
[1739521684147,7.867071,2717.1,2716.6,3.681]
[1739521684369,4.992751,2717.1,2717.0,0.04281454]
[1739521684563,7.36148,2716.9,2716.4,1.79876653]
[1739521684793,3.68082,2716.8,2716.4,1.79876653]
[1739521685295,3.68053,2717.0,2716.4,4.79876653]
[1739521685467,0.7784,2716.7,2716.4,1.79876653]
[1739521686057,3.6812,2716.5,2716.4,1.79876653]
[1739521686257,0.5575,2716.6,2716.4,1.79876653]
[1739521686765,4.23859,2716.6,2716.4,1.79876653]
[1739521686955,0.8698,2716.6,2716.4,1.79876653]
[1739521687154,3.6812,2716.5,2716.4,1.79876653]
[1739521687382,4.2387,2716.5,2716.4,1.79876653]
[1739521687579,0.8698,2716.6,2716.4,1.79876653]
[1739521687795,0.7784,2716.7,2716.4,1.79876653]
[1739521688155,3.6812,2716.5,2716.4,1.79876653]
[1739521688790,3.68111,2716.6,2716.4,1.79876653]
[1739521689099,3.6812,2716.5,2716.4,1.79876653]
[1739521690189,3.68107,2716.6,2716.4,1.79876653]
[1739521690380,0.7784,2716.7,2716.4,1.79876653]
[1739521690578,4.45935,2716.7,2716.4,1.79876653]
[1739521690760,3.6812,2716.5,2716.4,1.79876653]
[1739521693207,5.052767,2716.5,2716.4,1.79876653]
[1739521693388,5.832767,2716.5,2716.4,1.79876653]
[1739521693591,3.68203,2715.9,2715.4,4.4451]
[1739521693797,3.68218,2715.8,2715.5,0.04138766]
[1739521694105,3.68217,2715.8,2715.5,0.04138766]
[1739521694259,4.45453,2715.9,2715.5,0.04138766]
[1739521694464,0.7725,2715.9,2715.6,3.68242]
[1739521694717,4.44687,2716.1,2715.6,3.68242]
[1739521695008,4.44687,2716.1,2715.7,0.04122191]
[1739521695176,3.68191,2716.0,2715.7,0.04122191]
[1739521695377,3.68204,2715.9,2715.4,0.7625]
[1739521695708,3.68225,2715.8,2715.5,0.04138766]
[1739521695912,3.68242,2715.6,2715.5,0.04138766]
[1739521696236,3.68251,2715.6,2715.1,0.8224]
[1739521696437,4.47666,2715.5,2715.2,0.04016885]
[1739521696720,0.7941,2715.5,2715.0,3.68316]
[1739521697004,0.7941,2715.5,2714.8,4.40966142]
[1739521697208,3.68279,2715.4,2714.8,5.43422756]
[1739521697370,3.68279,2715.4,2714.8,9.11762756]
[1739521697572,3.6829,2715.3,2714.9,0.04041757]
[1739521697773,7.36583,2715.3,2714.9,0.04041757]
[1739521697973,3.68296,2715.2,2714.9,0.04041757]
[1739521698216,3.6829,2715.3,2714.9,0.04041757]
[1739521698775,4.47673,2715.5,2714.9,0.04041757]
[1739521699116,4.47673,2715.5,2715.0,3.6831]
[1739521699348,4.47673,2715.5,2714.9,7.40697757]
[1739521699540,0.7941,2715.5,2715.1,0.04113115]
[1739521699841,4.47667,2715.5,2715.2,0.04109506]
[1739521700132,4.47667,2715.5,2715.0,3.68321]
[1739521700435,4.47667,2715.5,2714.9,1.62429776]
[1739521700436,3.68269,2715.4,2714.9,1.62429776]
[1739521700709,3.68269,2715.4,2715.0,0.04126086]
[1739521700885,0.7941,2715.5,2715.0,3.72436086]
[1739521701286,4.47668,2715.5,2715.0,3.72436086]
[1739521701484,0.7941,2715.5,2715.1,3.68299]
[1739521701886,0.7941,2715.5,2715.2,0.04105293]
[1739521702137,3.6827,2715.4,2715.2,0.04105293]
[1739521702280,4.13051,2715.3,2715.2,0.04105293]
[1739521702584,4.13051,2715.3,2714.9,3.68327]
[1739521702585,0.44768,2715.3,2714.9,3.68327]
[1739521702785,3.68271,2715.4,2714.9,3.68327]
[1739521702984,3.68271,2715.4,2715.0,0.03839063]
[1739521703622,7.3655,2715.4,2715.0,0.03839063]
[1739521703772,3.68271,2715.4,2714.8,6.68337]
[1739521703977,3.68285,2715.3,2714.9,0.04143305]
[1739521704382,0.7941,2715.5,2714.9,0.04143305]
[1739521704583,3.68284,2715.3,2714.9,0.04143305]
[1739521705179,3.68281,2715.4,2714.9,0.04143305]
[1739521705410,3.68324,2715.0,2714.9,0.04143305]
[1739521705785,0.8298,2715.2,2714.4,2.85997624]
[1739521706112,3.68347,2714.9,2714.4,2.85997624]
[1739521706279,3.68351,2714.8,2714.4,5.03757624]
[1739521706477,3.68347,2714.9,2714.4,5.03757624]
[1739521706784,3.68358,2714.8,2714.4,5.03757624]
[1739521707174,3.68347,2714.9,2714.4,5.03757624]
[1739521707472,3.68351,2714.8,2714.4,5.03757624]
[1739521707674,0.8298,2714.7,2714.4,2.03757624]
[1739521707887,0.8298,2714.7,2714.4,5.72161624]
[1739521708116,3.68344,2714.9,2714.4,5.72161624]
[1739521708495,3.68344,2714.9,2714.4,2.03757624]
[1739521708697,3.68356,2714.8,2714.4,2.03757624]
[1739521709015,0.8298,2715.0,2714.4,2.03757624]
[1739521709230,3.68367,2714.7,2714.4,2.03757624]
[1739521709536,3.68365,2714.7,2714.4,2.03757624]
[1739521709683,3.68344,2714.9,2714.4,5.72151624]
[1739521710204,3.69096,2714.9,2714.5,0.03803351]
[1739521710391,0.4972039,2714.8,2714.5,0.03803351]
[1739521710591,3.68366,2714.7,2714.5,0.03803351]
[1739521710938,4.5131,2715.0,2714.5,3.72182351]
[1739521712418,3.95962,2715.5,2714.5,3.72182351]
[1739521712419,0.7889,2715.3,2714.6,0.777]
[1739521712715,3.68265,2715.5,2714.8,3.68342]
[1739521712888,0.368265,2715.5,2714.7,0.04100242]
[1739521713090,3.68284,2715.3,2714.9,0.03790783]
[1739521713294,3.68284,2715.3,2714.8,3.72148075]
[1739521713620,0.7889,2715.6,2715.0,3.72096492]
[1739521713949,0.7889,2715.6,2715.2,3.68295]
[1739521714084,0.0075,2715.7,2715.3,3.68273]
[1739521714293,0.0075,2715.7,2715.4,0.04037744]
[1739521714765,0.7596,2715.8,2715.4,0.04037744]
[1739521714915,0.7728,2716.0,2715.4,0.04037744]
[1739521715234,3.68204,2715.9,2715.3,3.68283]
[1739521715439,3.68204,2715.9,2715.4,0.04349094]
[1739521715677,0.813669,2715.9,2715.4,3.72614094]
[1739521715817,0.7653,2716.0,2715.4,3.72609094]
[1739521716140,0.7653,2716.0,2715.5,3.68251]
[1739521716498,0.7653,2716.0,2715.6,0.04329756]
[1739521716698,0.7653,2716.0,2715.6,3.72564756]
[1739521716901,4.49147,2716.3,2715.6,0.85249756]
[1739521717100,0.449897,2716.3,2715.9,3.68199]
[1739521717319,0.449897,2716.3,2715.9,3.68193]
[1739521717521,0.449897,2716.3,2716.0,0.04666888]
[1739521717914,0.0075,2716.2,2716.0,0.04666888]
[1739521718135,0.0075,2716.2,2715.9,3.68201]
[1739521718351,3.68128,2716.5,2716.1,0.04656344]
[1739521718674,0.8099,2716.9,2716.3,3.68147]
[1739521718821,0.8331,2717.2,2716.7,3.68086]
[1739521719015,0.8331,2717.2,2716.8,3.72627753]
[1739521719221,4.51344,2717.2,2716.8,0.04555753]
[1739521719425,4.51344,2717.2,2716.7,0.8065]
[1739521719426,5.1969,2717.2,2716.7,0.8065]
[1739521719774,0.81936,2717.2,2716.8,0.04555753]
[1739521719983,3.68016,2717.3,2716.8,0.04555753]
[1739521720184,3.68016,2717.3,2716.7,4.48742]
[1739521720344,3.67993,2717.5,2716.9,0.04545215]
[1739521720526,3.67993,2717.5,2716.8,3.72624753]
[1739521720727,3.67993,2717.5,2717.0,0.04534678]
[1739521720943,0.44321932,2717.4,2716.9,0.04545215]
[1739521721151,3.68025,2717.2,2717.1,0.04524142]
[1739521721465,3.6807,2716.9,2716.4,0.8184]
[1739521721693,3.6807,2716.9,2716.5,0.04992401]
[1739521722014,3.6808,2716.8,2716.5,0.04992401]
[1739521722292,3.6809,2716.8,2716.5,0.04992401]
[1739521722422,3.68061,2717.0,2716.4,3.68129]
[1739521722728,4.33809613,2717.2,2716.6,3.68105]
[1739521722928,4.33809613,2717.2,2716.7,3.68085]
[1739521722929,3.68033,2717.2,2716.7,3.68085]
[1739521723144,3.68014,2717.3,2716.7,3.73050941]
[1739521723355,4.92146932,2717.4,2716.8,3.68071]
[1739521723663,4.47819,2717.4,2716.9,3.73548952]
[1739521723959,4.47819,2717.4,2716.9,0.05491952]
[1739521723960,3.68013,2717.3,2716.9,0.05491952]
[1739521724324,3.68013,2717.3,2716.7,3.68083]
[1739521724553,3.68013,2717.3,2717.0,0.04931167]
[1739521724748,3.68035,2717.2,2716.7,3.68083]
[1739521724968,3.68054,2717.0,2716.6,3.8037]
[1739521725291,3.68027,2717.2,2716.6,7.4847]
[1739521725482,4.47827,2717.4,2716.8,3.68069]
[1739521725964,3.68019,2717.3,2716.8,3.68069]
[1739521726479,3.68007,2717.4,2716.9,3.68059]
[1739521726626,3.6802,2717.3,2716.8,3.68069]
[1739521726825,3.68007,2717.4,2716.8,3.68069]
[1739521727071,3.68012,2717.3,2716.6,4.48468]
[1739521727279,4.45424,2717.2,2716.7,3.6809]
[1739521727651,4.45424,2717.2,2716.7,3.0]
[1739521727950,4.45424,2717.2,2716.7,3.68091]
[1739521728350,4.45424,2717.2,2716.6,3.8037]
[1739521728545,3.68101,2716.7,2716.3,0.7875]
[1739521728747,4.9365397,2717.2,2716.7,3.68087]
[1739521728952,0.8285,2717.7,2716.8,0.7832]
[1739521729152,0.8285,2717.7,2717.0,3.68045]
[1739521729352,3.67986,2717.5,2717.0,3.68045]
[1739521729681,3.67986,2717.5,2716.9,3.68066]
[1739521729682,3.68007,2717.4,2716.9,3.68066]
[1739521729875,0.8285,2717.7,2716.8,0.7832]
[1739521730076,3.67993,2717.5,2716.8,7.46393]
[1739521730276,0.8285,2717.7,2716.8,0.7832]
[1739521730453,3.67994,2717.5,2716.8,4.46388]
[1739521730793,7.36039,2717.3,2716.8,7.46388]
[1739521730972,3.68027,2717.2,2716.8,7.46388]
[1739521731177,3.68054,2717.0,2716.3,3.68147]
[1739521731474,3.68068,2716.9,2716.3,3.68141]
[1739521731646,7.36146,2716.9,2716.3,3.68137]
[1739521731974,3.6808,2716.8,2716.3,7.36277]
[1739521732169,3.68049,2717.1,2716.3,4.792927]
[1739521732367,3.68067,2716.9,2716.3,4.792927]
[1739521732580,3.68067,2716.9,2716.4,3.68124]
[1739521732980,0.8194,2717.2,2716.3,1.111557]
[1739521733141,3.68115,2716.6,2716.2,0.7528]
[1739521733689,3.6814,2716.4,2716.0,3.68187]
[1739521733889,3.68127,2716.5,2716.0,3.68187]
[1739521734090,0.781,2716.6,2716.1,3.0]
[1739521734297,0.781,2716.6,2716.2,3.68157]
[1739521734656,3.681,2716.7,2716.2,3.68157]
[1739521734863,0.7808,2716.8,2716.2,3.68153]
[1739521735053,3.68768,2717.3,2716.3,0.8039]
[1739521735054,3.68025,2717.2,2716.3,0.8039]
[1739521735281,3.68025,2717.2,2716.7,3.6809]
[1739521735454,3.68006,2717.4,2716.9,3.68065]
[1739521735653,7.36013,2717.4,2716.9,3.68065]
[1739521735854,3.68026,2717.2,2716.8,0.8039]
[1739521736159,3.68012,2717.3,2716.8,4.48467]
[1739521737656,0.7866,2717.7,2716.8,0.8039]
[1739521737856,3.68061,2717.0,2716.6,3.0]
[1739521738056,3.68061,2717.0,2716.5,4.45828]
[1739521738280,3.68073,2716.9,2716.5,0.7771]
[1739521738596,3.68089,2716.8,2716.4,3.0]
[1739521738802,3.68098,2716.7,2716.2,7.835113]
[1739521738958,3.68098,2716.7,2716.2,0.7854]
[1739521739316,3.68072,2716.9,2716.2,4.467]
[1739521739644,0.1468444,2718.2,2718.1,7.50064]
[1739521739960,0.1468444,2718.2,2718.1,10.5630043]
[1739521740160,0.1468444,2718.2,2718.1,7.50064]
[1739521741004,0.1468444,2718.2,2718.1,11.60266524]
[1739521743433,0.72552378,2720.3,2718.5,0.2067]
[1739521743565,3.6758,2720.5,2719.8,6.7390643]
[1739521743900,0.1468444,2720.9,2719.5,0.2067]
[1739521743901,0.7753,2720.4,2719.5,0.2067]
[1739521744101,0.015,2720.3,2719.0,0.93244491]
[1739521744399,0.1,2720.0,2718.3,0.2067]
[1739521744600,0.7753,2719.7,2718.3,0.2067]
[1739521744906,3.67741,2719.4,2718.4,3.67861]
[1739521745063,3.67741,2719.4,2718.3,0.2067]
[1739521745064,3.67741,2719.4,2718.3,3.2067]
[1739521745262,4.122321,2719.6,2718.8,3.67807]
[1739521745458,0.7753,2719.7,2719.0,3.6778]